bitfinex/quotes_ETHUSD_20250507
["timestamp","ask_amount","ask_price","bid_price","bid_amount"]
[1746632027530,3.7671,1823.1,1822.8,6.20413566]
[1746632028055,3.7671,1823.1,1822.8,11.68998513]
[1746632028274,3.7671,1823.1,1822.9,5.48571356]
[1746632028275,0.7671,1823.1,1822.9,5.48571356]
[1746632028975,3.7671,1823.1,1822.9,5.48571356]
[1746632029194,3.7671,1823.1,1822.8,6.20410775]
[1746632029543,0.7671,1823.1,1822.9,5.48575531]
[1746632029772,0.7671,1823.1,1822.9,5.48558623]
[1746632030977,0.7671,1823.1,1822.8,6.20410775]
[1746632031338,0.7671,1823.1,1822.9,5.48574485]
[1746632031773,3.7671,1823.1,1822.8,6.20412613]
[1746632031991,3.7671,1823.1,1822.8,0.71825828]
[1746632032175,10.17756663,1823.1,1822.8,0.71825828]
[1746632032471,5.48469131,1823.3,1822.9,5.48565362]
[1746632032677,3.0,1823.2,1822.9,6.25965362]
[1746632032838,3.0,1823.0,1822.8,0.71825828]
[1746632034576,6.26662781,1823.1,1822.7,5.48616546]
[1746632034577,3.8188,1822.8,1822.7,0.71825828]
[1746632034778,3.0,1822.4,1822.3,0.71825828]
[1746632035076,3.0,1822.4,1822.2,5.48786823]
[1746632035287,3.0,1822.4,1822.2,6.20612651]
[1746632035857,3.0,1822.4,1822.2,0.71825828]
[1746632036064,3.8001,1822.4,1822.2,0.71825828]
[1746632036296,4.72880736,1822.4,1822.2,0.71825828]
[1746632037103,10.21621969,1822.4,1822.2,0.71825828]
[1746632037487,7.68879199,1822.4,1822.1,0.71825828]
[1746632037704,9.25528103,1822.1,1821.9,0.71825828]
[1746632039368,3.0,1822.1,1821.9,0.71825828]
[1746632039797,0.7667,1822.2,1821.9,6.20689746]
[1746632039970,1.14337,1822.2,1821.9,6.20689746]
[1746632040172,1.14337,1822.2,1821.9,11.69550268]
[1746632040367,1.14337,1822.2,1821.9,6.20685001]
[1746632040702,3.0,1822.2,1822.1,5.48807113]
[1746632041300,3.0,1822.2,1822.0,10.97657358]
[1746632041462,3.0,1822.2,1822.0,5.48828679]
[1746632041665,3.0,1822.2,1822.0,5.48827843]
[1746632041862,0.92870736,1822.4,1821.9,1.51765828]
[1746632042067,5.547,1822.5,1822.0,5.54328099]
[1746632042294,5.547,1822.5,1822.3,5.4874073]
[1746632042888,3.8272,1822.6,1822.3,5.4874073]
[1746632043094,3.0,1822.5,1822.3,5.4874073]
[1746632043302,3.0,1822.5,1822.2,6.2994767]
[1746632043488,3.0,1822.5,1822.3,0.71825828]
[1746632044110,3.0,1822.5,1822.3,6.20581315]
[1746632044482,3.0,1822.5,1822.3,0.71825828]
[1746632044683,3.0,1822.5,1822.3,6.20576198]
[1746632045516,0.8272,1822.6,1822.3,6.20576198]
[1746632045810,0.8272,1822.6,1822.3,0.71825828]
[1746632046020,2.35144572,1822.6,1822.3,0.71825828]
[1746632046207,2.35144572,1822.6,1822.3,11.69319062]
[1746632046408,8.92888,1822.7,1822.3,11.69319062]
[1746632046409,8.92888,1822.7,1822.3,6.20563276]
[1746632046590,14.41537786,1822.7,1822.3,0.71825828]
[1746632047012,14.41537786,1822.7,1822.3,6.20568858]
[1746632047413,8.92888,1822.7,1822.4,5.48722437]
[1746632048119,14.41527582,1822.7,1822.3,0.71825828]
[1746632048323,1.698688,1822.6,1822.3,0.71825828]
[1746632048522,3.0,1822.5,1822.3,0.71825828]
[1746632048822,8.48698717,1822.5,1822.3,0.71825828]
[1746632049026,12.29595288,1822.4,1822.3,0.71825828]
[1746632049185,16.10175288,1822.4,1822.3,0.71825828]
[1746632051809,5.48866171,1822.0,1821.7,0.71825828]
[1746632052004,3.0,1821.9,1821.8,0.71825828]
[1746632052246,3.0,1821.9,1821.7,0.71825828]
[1746632052541,9.9679495,1821.9,1821.7,0.71825828]
[1746632052893,1.47917061,1821.9,1821.7,0.71825828]
[1746632053201,6.96795031,1821.9,1821.7,0.71825828]
[1746632053613,1.47917061,1821.9,1821.7,0.71825828]
[1746632053813,8.48880019,1821.9,1821.7,0.71825828]
[1746632055240,3.0,1821.7,1821.3,0.71825828]
[1746632055420,3.0,1821.6,1821.4,0.71825828]
[1746632055935,3.0,1821.6,1821.4,6.20851017]
[1746632056442,0.7524,1821.8,1821.4,0.71825828]
[1746632056604,8.547,1821.9,1821.6,5.48958198]
[1746632056816,8.547,1821.9,1821.5,6.24410401]
[1746632057013,14.03579458,1821.9,1821.5,6.24408816]
[1746632057715,14.03579458,1821.9,1821.5,11.73388817]
[1746632057916,8.547,1821.9,1821.5,6.24408816]
[1746632058248,8.547,1821.9,1821.6,5.48964741]
[1746632058549,10.58037492,1821.9,1821.6,6.20772885]
[1746632058922,16.06918224,1821.9,1821.6,0.71825828]
[1746632059433,0.8219,1821.7,1821.6,0.71825828]
[1746632060031,11.40227492,1821.9,1821.6,6.20792311]
[1746632060248,11.40227492,1821.9,1821.6,0.71825828]
[1746632060548,3.0,1822.1,1821.7,1.53575828]
[1746632060710,14.03628362,1822.1,1821.8,0.71825828]
[1746632061111,19.52469704,1822.1,1821.8,0.71825828]
[1746632061345,0.7534,1822.2,1821.8,0.71825828]
[1746632061529,5.548,1822.2,1822.0,5.48834282]
[1746632061730,7.10230446,1822.4,1821.9,0.71825828]
[1746632061731,7.16289872,1822.4,1821.9,0.71825828]
[1746632061934,7.16289872,1822.4,1822.1,5.48807103]
[1746632062134,7.16289872,1822.4,1822.1,6.20632931]
[1746632062361,5.548,1822.5,1822.3,5.48757065]
[1746632062568,5.548,1822.5,1822.2,5.48768613]
[1746632062863,6.2995,1822.8,1822.3,0.71825828]
[1746632063011,5.48657963,1822.7,1822.4,0.71825828]
[1746632064151,5.48648207,1822.7,1822.4,0.71825828]
[1746632064947,3.0,1822.7,1822.4,0.71825828]
[1746632065150,3.0,1822.7,1822.4,6.20534219]
[1746632065316,3.0,1822.7,1822.4,0.71825828]
[1746632065516,8.48653978,1822.7,1822.4,0.71825828]
[1746632066553,5.48696844,1822.5,1822.4,0.71825828]
[1746632067056,6.27356844,1822.5,1822.4,0.71825828]
[1746632067251,9.27356844,1822.5,1822.4,0.71825828]
[1746632067548,5.48817298,1822.1,1822.0,0.71825828]
[1746632067763,1.47917448,1822.1,1821.7,6.20733958]
[1746632067929,3.0,1822.1,1821.8,6.20732922]
[1746632068132,3.0,1822.1,1821.8,0.71825828]
[1746632068341,8.4882678,1822.1,1821.8,0.71825828]
[1746632068861,8.48848145,1822.0,1821.8,0.71825828]
[1746632069020,9.3373296,1822.0,1821.8,0.71825828]
[1746632069435,3.84884815,1822.0,1821.8,0.71825828]
[1746632069759,9.33742038,1822.0,1821.8,0.71825828]
[1746632070437,8.48877545,1821.9,1821.8,0.71825828]
[1746632070633,3.0,1821.9,1821.8,0.71825828]
[1746632070825,8.48877545,1821.9,1821.8,0.71825828]
[1746632071032,6.24608892,1821.8,1821.6,0.71825828]
[1746632072858,0.7568,1821.8,1821.6,0.71825828]
[1746632073157,5.48908827,1821.8,1821.6,0.71825828]
[1746632073538,5.48909585,1821.8,1821.6,0.71825828]
[1746632073938,5.48937805,1821.7,1821.6,0.71825828]
[1746632074163,3.0,1821.6,1821.5,0.71825828]
[1746632074770,8.48985997,1821.6,1821.2,7.02573318]
[1746632075077,8.48985997,1821.6,1821.3,0.71825828]
[1746632075369,8.48985997,1821.6,1821.2,0.71825828]
[1746632075370,8.4902822,1821.4,1821.2,0.71825828]
[1746632075574,5.49058364,1821.3,1821.2,0.71825828]
[1746632076173,3.0,1821.2,1821.1,2.49842067]
[1746632076758,8.49088513,1821.2,1821.1,2.49842067]
[1746632076939,3.0,1821.2,1821.1,2.49842067]
[1746632077133,8.49088513,1821.2,1821.1,2.49842067]
[1746632077876,3.0,1821.2,1821.1,2.49842067]
[1746632078169,4.06607885,1821.2,1821.1,2.49842067]
[1746632079054,9.55696398,1821.2,1821.1,2.49842067]
[1746632079368,4.06607885,1821.2,1821.1,2.49842067]
[1746632080353,9.55696398,1821.2,1821.1,2.49842067]
[1746632080878,4.06607885,1821.2,1821.1,2.49842067]
[1746632081087,9.55696398,1821.2,1821.1,2.49842067]
[1746632081574,4.06607885,1821.2,1821.1,2.49842067]
[1746632082350,5.17008658,1821.3,1821.1,2.49842067]
[1746632082555,10.66068774,1821.3,1821.1,2.49842067]
[1746632082748,5.17008658,1821.3,1821.1,2.49842067]
[1746632082949,10.66067997,1821.3,1821.1,2.49842067]
[1746632085194,5.49088513,1821.2,1821.1,2.49842067]
[1746632085395,1.61515651,1821.2,1821.1,2.49842067]
[1746632086254,7.10604164,1821.2,1821.1,2.49842067]
[1746632086456,10.10604164,1821.2,1821.1,2.49842067]
[1746632086867,10.90364164,1821.2,1821.1,2.49842067]
[1746632087183,5.41275651,1821.2,1821.1,2.49842067]
[1746632087360,16.45264164,1821.2,1821.1,2.49842067]
[1746632087853,10.96175651,1821.2,1821.1,2.49842067]
[1746632088180,4.61515651,1821.2,1821.1,2.49842067]
[1746632088394,2.871038,1821.2,1821.1,2.49842067]
[1746632089085,6.25416188,1821.4,1821.1,2.49842067]
[1746632089250,5.55,1821.3,1821.1,2.49842067]
[1746632089451,0.7638,1821.4,1821.1,3.21667895]
[1746632089663,5.55,1821.4,1821.1,8.70783629]
[1746632090052,5.95998463,1821.5,1821.1,3.21667895]
[1746632090270,5.55,1821.5,1821.2,6.2799989]
[1746632090463,3.0,1821.4,1821.2,6.2799989]
[1746632090875,3.0,1821.4,1821.2,6.27999246]
[1746632092179,3.0,1821.4,1821.2,0.7893]
[1746632092353,3.0,1821.4,1821.2,6.28016607]
[1746632093053,3.0,1821.4,1821.1,9.02932539]
[1746632093257,3.0,1821.4,1821.1,8.7076575]
[1746632093878,3.0,1821.4,1821.2,5.49083936]
[1746632094462,3.0,1821.4,1821.2,6.20909764]
[1746632094661,3.0,1821.4,1821.2,0.71825828]
[1746632095683,3.0,1821.4,1821.2,6.2091381]
[1746632096265,3.0,1821.4,1821.2,11.69983542]
[1746632096474,3.0,1821.4,1821.2,6.2089556]
[1746632096996,3.0,1821.4,1821.2,0.71825828]
[1746632097301,4.15543875,1821.3,1821.2,0.71825828]
[1746632097595,12.64602239,1821.3,1821.2,0.71825828]
[1746632099073,6.39433875,1821.3,1821.2,0.71825828]
[1746632099485,11.88492239,1821.3,1821.2,0.71825828]
[1746632099785,8.49058364,1821.3,1821.2,0.71825828]
[1746632101099,3.0,1821.3,1821.2,0.71825828]
[1746632101509,8.49058364,1821.3,1821.2,0.71825828]
[1746632101800,3.0,1821.3,1821.2,0.71825828]
[1746632102003,17.01494166,1821.6,1821.2,0.71825828]
[1746632102004,0.7797,1821.6,1821.2,0.71825828]
[1746632102168,20.3087913,1821.7,1821.3,6.20883244]
[1746632102372,5.48971744,1821.6,1821.3,0.71825828]
[1746632102568,5.49015393,1821.5,1821.3,0.71825828]
[1746632102774,8.4902822,1821.4,1821.3,0.71825828]
[1746632103372,3.0,1821.4,1821.3,0.71825828]
[1746632104308,9.3046822,1821.4,1821.3,0.71825828]
[1746632104787,15.27979211,1821.4,1821.3,0.71825828]
[1746632104983,17.35678671,1821.4,1821.3,0.71825828]
[1746632106279,22.90678671,1821.4,1821.3,0.71825828]
[1746632106612,22.90678671,1821.4,1820.9,0.71825828]
[1746632106613,3.0,1821.1,1820.9,0.71825828]
[1746632107779,8.49119505,1821.1,1820.9,0.71825828]
[1746632107980,9.31089989,1821.1,1820.9,0.71825828]
[1746632108196,8.49148819,1821.0,1820.9,0.71825828]
[1746632108401,8.49148819,1821.0,1820.7,0.71825828]
[1746632108616,8.49179463,1820.9,1820.7,0.71825828]
[1746632108983,2.29969693,1821.1,1820.7,0.71825828]
[1746632109186,6.31081377,1821.1,1820.7,6.21045125]
[1746632109384,11.80226488,1821.1,1820.7,6.21045125]
[1746632109701,5.49151404,1821.0,1820.7,0.71825828]
[1746632110089,6.31081377,1821.1,1820.7,0.71825828]
[1746632111023,5.49150329,1821.0,1820.7,0.71825828]
[1746632111224,6.31081377,1821.1,1820.7,0.71825828]
[1746632111398,5.49131377,1821.1,1820.7,6.21054693]
[1746632112013,10.98275496,1821.1,1820.7,6.21054693]
[1746632112303,10.98277144,1821.1,1820.8,0.71825828]
[1746632112505,7.44459091,1821.1,1820.8,0.71825828]
[1746632113925,3.0,1821.1,1820.8,6.21015959]
[1746632114127,3.0,1821.1,1820.9,0.7903]
[1746632114496,13.98267766,1821.1,1820.8,0.71825828]
[1746632114701,5.49149443,1821.0,1820.8,0.71825828]
[1746632114896,8.49121606,1821.1,1820.8,0.71825828]
[1746632115330,13.98263665,1821.1,1820.8,0.71825828]
[1746632115533,8.49121606,1821.1,1820.8,0.71825828]
[1746632115729,5.49167951,1821.0,1820.8,0.71825828]
[1746632115916,6.27197951,1821.0,1820.8,0.71825828]
[1746632116119,8.49178977,1820.9,1820.8,0.71825828]
[1746632117326,3.0,1820.9,1820.8,0.71825828]
[1746632117933,8.49178977,1820.9,1820.8,0.71825828]
[1746632118441,8.49178977,1820.9,1820.7,0.71825828]
[1746632118640,9.77901209,1820.9,1820.7,0.71825828]
[1746632118846,4.28722232,1820.9,1820.7,0.71825828]
[1746632119042,9.77905996,1820.9,1820.7,0.71825828]
[1746632119434,5.49209138,1820.8,1820.7,0.71825828]
[1746632120322,15.27109507,1820.9,1820.7,0.71825828]
[1746632120534,9.77905996,1820.9,1820.7,0.71825828]
[1746632120727,5.49209138,1820.8,1820.7,0.71825828]
[1746632122044,5.49255701,1820.7,1820.4,1.54015828]
[1746632122240,14.38189612,1820.7,1820.5,0.71825828]
[1746632122420,9.67277912,1820.7,1820.5,0.71825828]
[1746632122952,5.49269471,1820.6,1820.5,0.71825828]
[1746632124534,3.0,1820.6,1820.5,0.71825828]
[1746632124726,8.49269471,1820.6,1820.5,0.71825828]
[1746632127325,3.0,1820.4,1820.3,0.71825828]
[1746632127524,8.49329817,1820.4,1820.3,0.71825828]
[1746632127865,3.0,1820.4,1820.3,0.71825828]
[1746632128682,8.49329817,1820.4,1820.3,0.71825828]
[1746632128885,3.0,1820.4,1820.3,0.71825828]
[1746632129239,8.49285401,1820.6,1820.3,0.71825828]
[1746632129441,4.18022211,1820.7,1820.3,0.71825828]
[1746632129649,5.551,1821.0,1820.6,5.49254485]
[1746632129877,5.551,1821.0,1820.7,6.30455798]
[1746632130089,9.22384105,1821.1,1820.8,5.4920598]
[1746632130388,3.67284105,1820.9,1820.8,6.21031808]
[1746632130757,3.67284105,1820.9,1820.8,0.71825828]
[1746632131078,3.67284105,1820.9,1820.8,6.21034966]
[1746632131547,3.67284105,1820.9,1820.8,8.23253272]
[1746632131747,3.98230736,1820.9,1820.8,8.23253272]
[1746632131949,3.98230736,1820.9,1820.8,2.74044134]
[1746632132277,3.98230736,1820.9,1820.8,0.71825828]
[1746632132645,3.98230736,1820.9,1820.8,6.21034966]
[1746632133646,0.30946631,1820.9,1820.8,5.49209138]
[1746632134047,8.49101218,1821.2,1820.8,5.49209138]
[1746632134268,0.31259791,1820.9,1820.8,5.49209138]
[1746632134464,8.49101218,1821.2,1820.8,5.49209138]
[1746632134668,8.49101218,1821.2,1820.8,6.33440921]
[1746632134669,0.31259791,1820.9,1820.8,6.33440921]
[1746632134869,3.0,1821.3,1821.0,5.49120788]
[1746632135074,6.39672211,1821.3,1820.9,5.49158296]
[1746632135346,6.39672211,1821.3,1820.9,11.61106202]
[1746632135577,4.18492211,1821.5,1821.2,5.4908019]
[1746632135756,9.6862923,1821.7,1821.3,5.4905711]
[1746632135958,5.551,1821.8,1821.3,6.24281358]
[1746632136365,8.551,1821.8,1821.4,5.49014976]
[1746632136549,8.551,1821.8,1821.4,10.98024739]
[1746632136754,5.4886801,1822.0,1821.5,6.30218076]
[1746632136957,5.48877906,1821.9,1821.5,0.7573]
[1746632137154,8.4891866,1821.8,1821.5,0.7573]
[1746632138473,8.88620602,1821.7,1821.2,6.29951201]
[1746632138677,3.39672211,1821.5,1821.2,6.29947039]
[1746632138986,3.39672211,1821.7,1821.4,5.49027494]
[1746632139351,8.55,1821.8,1821.4,5.49010606]
[1746632139553,14.03911783,1821.8,1821.4,5.49010606]
[1746632140583,8.88622366,1821.7,1821.3,5.49037929]
[1746632140789,8.88622366,1821.7,1821.2,11.79021326]
[1746632140991,8.88622366,1821.7,1821.3,5.4905454]
[1746632141196,10.62984603,1821.7,1821.3,5.4905454]
[1746632141692,5.14034448,1821.7,1821.4,5.4900559]
[1746632141856,3.39672211,1821.7,1821.4,5.4900559]
[1746632142280,8.88612528,1821.7,1821.2,6.29947964]
[1746632142479,8.55,1821.8,1821.0,0.7909]
[1746632142480,3.39672211,1821.3,1821.0,0.7909]
[1746632142886,3.39672211,1821.3,1821.0,6.28236878]
[1746632143073,0.25832575,1821.2,1821.0,6.28236878]
[1746632143268,0.25832575,1821.2,1821.1,5.49118664]
[1746632143471,3.0,1821.4,1821.1,5.49118664]
[1746632143878,0.25888214,1821.3,1821.1,5.49118664]
[1746632144072,8.4902831,1821.4,1821.0,7.45977949]
[1746632144278,0.25895809,1821.3,1821.0,7.45977949]
[1746632144478,8.4902831,1821.4,1821.0,7.45977949]
[1746632144801,0.25873022,1821.3,1821.0,7.45977949]
[1746632144963,8.4902831,1821.4,1821.0,7.45977949]
[1746632145169,0.25840172,1821.2,1821.0,7.45977949]
[1746632145391,8.4902831,1821.4,1821.0,7.45977949]
[1746632145591,0.25891554,1821.1,1821.0,6.28238257]
[1746632145887,8.4902831,1821.4,1821.0,6.28238257]
[1746632146075,0.25899151,1821.1,1821.0,6.28238257]
[1746632146669,3.0,1821.4,1821.1,5.49115363]
[1746632149798,3.0,1821.4,1821.0,0.7909]
[1746632149978,8.49032973,1821.4,1821.0,6.28210585]
[1746632150318,8.49041121,1821.4,1821.0,6.28210585]
[1746632150475,3.0,1821.4,1821.0,6.28210585]
[1746632150681,3.0,1821.4,1821.0,6.91031643]
[1746632151011,3.0,1821.4,1821.1,5.49114849]
[1746632151211,3.0,1821.4,1821.0,12.40159004]
[1746632151513,8.49031421,1821.4,1821.0,6.91031643]
[1746632151706,3.0,1821.4,1821.0,6.28210585]
[1746632151902,3.0,1821.4,1821.1,5.49117423]
[1746632152686,3.0,1821.4,1821.0,6.28218666]
[1746632152888,3.0,1821.4,1821.0,11.77347332]
[1746632153086,3.0,1821.4,1821.0,11.77346233]
[1746632153287,3.0,1821.4,1821.0,11.77345685]
[1746632153488,3.0,1821.4,1821.1,5.49117143]
[1746632154315,3.0,1821.4,1821.1,5.49115215]
[1746632155719,3.0,1821.4,1821.0,6.28217115]
[1746632155898,3.0,1821.4,1821.1,10.9821446]
[1746632156099,3.0,1821.4,1821.1,5.49104976]
[1746632156398,3.0,1821.4,1821.0,6.91041665]
[1746632156609,3.0,1821.4,1821.1,5.49094681]
[1746632156786,3.0,1821.4,1821.0,1.41911712]
[1746632156992,3.0,1821.6,1821.3,6.31138364]
[1746632157715,3.0,1821.7,1821.3,11.80177168]
[1746632157922,3.0,1821.7,1821.3,6.31118804]
[1746632157923,0.25528604,1821.6,1821.3,6.31118804]
[1746632158336,3.0,1821.5,1821.3,0.8208]
[1746632158537,0.25447734,1821.4,1821.3,0.8208]
[1746632158745,0.25447734,1821.4,1821.3,6.94800835]
[1746632159841,3.39672211,1821.6,1821.3,6.94800835]
[1746632160038,0.25447734,1821.4,1821.3,6.9478649]
[1746632160337,0.25471681,1821.4,1821.3,6.9478649]
[1746632160536,3.39672211,1821.6,1821.3,6.9478649]
[1746632160740,0.25512118,1821.5,1821.3,1.45743662]
[1746632160956,3.25512118,1821.5,1821.3,0.63663662]
[1746632161814,0.25512118,1821.5,1821.3,11.61757661]
[1746632162015,3.39672211,1821.4,1821.3,0.63663662]
[1746632162225,4.45141672,1821.4,1820.9,0.8268]
[1746632162421,9.94180493,1821.4,1821.0,5.4913962]
[1746632162616,9.94180493,1821.4,1821.0,11.03758596]
[1746632162822,4.45141672,1821.4,1821.0,5.49128154]
[1746632163033,9.94171075,1821.4,1821.0,5.54618973]
[1746632163249,8.88787608,1821.2,1821.0,0.69220716]
[1746632163418,0.7912,1821.1,1820.8,5.49199273]
[1746632163744,0.23264087,1821.1,1821.0,5.49148819]
[1746632164039,0.23264087,1821.1,1821.0,7.38879347]
[1746632164214,0.23264087,1821.1,1821.0,1.89730528]
[1746632165143,0.23264087,1821.1,1821.0,7.38879347]
[1746632165439,3.0,1821.5,1821.2,5.49081681]
[1746632165621,3.0,1821.5,1821.2,5.49068233]
[1746632166209,0.7595,1821.6,1821.3,5.49032595]
[1746632166432,3.7595,1821.6,1821.3,5.49032595]
[1746632167341,9.24918641,1821.6,1821.2,5.49071709]
[1746632167552,5.49001808,1821.5,1821.1,5.4910094]
[1746632167717,12.64590852,1821.6,1821.1,5.49096467]
[1746632167917,5.48998982,1821.5,1821.1,6.77892376]
[1746632168318,5.48998982,1821.5,1821.1,10.98193846]
[1746632168518,7.15622211,1821.6,1821.3,5.49057111]
[1746632168952,12.64591277,1821.6,1821.2,5.49067457]
[1746632169953,18.13583043,1821.6,1821.2,5.49067457]
[1746632170130,12.64591277,1821.6,1821.2,5.49067457]
[1746632170527,7.15622211,1821.6,1821.3,5.4905303]
[1746632170720,12.64607669,1821.6,1821.2,6.13602963]
[1746632170922,5.48999442,1821.5,1821.2,0.64535506]
[1746632171222,8.88703546,1821.4,1821.0,5.49131744]
[1746632171447,0.7931,1821.3,1821.0,5.49131744]
[1746632171634,3.39672211,1821.4,1821.1,5.49095616]
[1746632172223,0.7931,1821.5,1821.2,5.49086039]
[1746632172418,3.0,1821.6,1821.4,5.49005214]
[1746632172619,3.0,1821.6,1821.4,10.98011644]
[1746632172824,3.0,1821.8,1821.5,6.25142361]
[1746632173658,0.7931,1822.1,1821.6,0.05489497]
[1746632173832,5.48849465,1822.0,1821.6,0.05489497]
[1746632174034,5.48851715,1822.0,1821.6,5.48955645]
[1746632174255,5.48851715,1822.0,1821.6,12.15315352]
[1746632174429,0.773,1821.8,1821.6,1.17410626]
[1746632174768,0.773,1821.8,1821.5,5.48992774]
[1746632175437,0.773,1821.8,1821.4,5.49015803]
[1746632175438,3.39672211,1821.7,1821.4,5.49014352]
[1746632175753,3.39672211,1821.7,1821.2,1.09818165]
[1746632175959,3.773,1821.5,1821.2,6.58904096]
[1746632176159,3.773,1821.5,1821.3,0.6589041]
[1746632177973,10.98094815,1821.4,1821.0,5.49133661]
[1746632178257,0.7748,1821.2,1821.0,5.49147163]
[1746632178567,0.7748,1821.2,1820.9,5.49175716]
[1746632178872,0.7748,1821.2,1820.9,10.98337448]
[1746632179047,0.7748,1821.2,1820.9,5.49161732]
[1746632179437,0.7748,1821.2,1820.9,6.04077905]
[1746632180269,0.7748,1821.2,1820.9,6.04076204]
[1746632180572,0.7748,1821.2,1820.9,6.04075826]
[1746632180768,9.26580664,1821.2,1820.9,0.54916173]
[1746632180955,9.26580664,1821.2,1820.8,5.49197436]
[1746632181164,8.88802445,1821.1,1820.7,6.25848301]
[1746632181358,3.39672211,1821.1,1820.7,6.25846699]
[1746632181559,3.39672211,1821.1,1820.8,5.49199909]
[1746632181876,3.39672211,1821.1,1820.7,0.7663]
[1746632182067,3.39672211,1821.1,1820.7,1.39218201]
[1746632182373,3.39672211,1821.1,1820.7,6.11807601]
[1746632182374,8.88791499,1821.1,1820.7,6.11807601]
[1746632182575,8.88791499,1821.1,1820.7,0.62588201]
[1746632182764,8.88791499,1821.1,1820.7,5.49235447]
[1746632183289,8.88791464,1821.1,1820.7,5.49235447]
[1746632183884,0.7979,1820.9,1820.6,5.49268638]
[1746632184187,9.68660459,1820.9,1820.5,5.4929392]
[1746632184337,8.49222688,1820.8,1820.4,5.49310409]
[1746632184543,2.60911824,1820.9,1820.3,5.49358084]
[1746632184767,8.59268516,1820.8,1820.4,5.49319986]
[1746632185093,8.59268516,1820.8,1820.2,4.55286899]
[1746632185094,5.49270973,1820.6,1820.2,9.18585868]
[1746632185248,5.49270219,1820.6,1820.2,9.18585868]
[1746632185582,9.68059318,1820.7,1820.3,5.49359154]
[1746632185742,9.68059318,1820.7,1820.3,10.98697995]
[1746632185943,4.18802211,1820.7,1820.4,5.49321148]
[1746632186160,0.7913,1820.7,1820.4,5.49311032]
[1746632186573,0.7913,1820.7,1820.3,5.49343286]
[1746632186774,5.49270323,1820.6,1820.2,5.49370996]
[1746632186969,5.49270323,1820.6,1820.1,11.29979029]
[1746632187169,5.49270323,1820.6,1820.1,12.42976932]
[1746632187497,5.49270323,1820.6,1820.2,5.49381246]
[1746632187695,5.49270323,1820.6,1820.1,12.42976932]
[1746632187882,4.2884823,1820.7,1820.1,6.93577903]
[1746632187883,3.0,1820.5,1820.1,6.93577903]
[1746632188089,5.49336595,1820.4,1820.1,5.0]
[1746632188408,5.69398708,1820.4,1820.1,5.0]
[1746632188706,0.20062113,1820.4,1820.1,5.0]
[1746632189001,5.69392039,1820.4,1820.1,5.0]
[1746632189376,5.49424375,1820.1,1819.7,6.24860692]
[1746632189575,3.39672211,1819.9,1819.6,5.49565839]
[1746632189796,5.69266959,1820.0,1819.6,5.49565839]
[1746632189985,0.19723246,1819.8,1819.6,5.49565839]
[1746632190294,0.7541,1819.9,1819.5,6.65808423]
[1746632190497,0.19682732,1819.7,1819.5,7.87349793]
[1746632190714,6.24900944,1819.9,1819.5,0.4088707]
[1746632191007,6.24900944,1819.9,1819.5,5.90486159]
[1746632191203,0.19723246,1819.8,1819.5,0.4088707]
[1746632192200,0.19723246,1819.8,1819.5,5.9048438]
[1746632192398,8.89224859,1819.7,1819.5,0.4088707]
[1746632192617,0.8286,1819.6,1819.5,0.4088707]
[1746632192774,6.51846656,1819.6,1819.5,0.4088707]
[1746632192968,1.02275322,1819.6,1819.5,0.4088707]
[1746632193169,6.51846656,1819.6,1819.5,0.4088707]
[1746632193709,9.51026656,1819.6,1819.5,0.4088707]
[1746632193868,11.47141289,1819.6,1819.5,0.4088707]
[1746632194075,11.57183596,1819.6,1819.5,0.4088707]
[1746632194693,11.97976469,1819.6,1819.5,0.4088707]
[1746632195580,12.52976469,1819.6,1819.5,0.4088707]
[1746632195788,18.51935295,1819.6,1819.5,0.4088707]
[1746632197477,5.49661957,1819.3,1819.2,3.69416276]
[1746632197669,5.49661957,1819.3,1818.8,7.75]
[1746632197670,3.8012,1818.9,1818.8,7.75]
[1746632197873,9.29902835,1818.9,1818.8,7.75]
[1746632198074,3.96582576,1818.9,1818.8,7.75]
[1746632199087,3.16462576,1818.9,1818.8,13.24813063]
[1746632199285,0.16462576,1818.9,1818.8,13.24813063]
[1746632199472,0.16462576,1818.9,1818.8,7.75]
[1746632199669,9.47158613,1819.3,1818.9,5.49766467]
[1746632200077,0.91858613,1819.3,1818.9,10.99533248]
[1746632200281,0.10038613,1819.3,1819.1,5.49704483]
[1746632200490,0.10038613,1819.3,1819.1,5.49719747]
[1746632200678,0.10038613,1819.3,1819.1,10.99419286]
[1746632200997,0.10038613,1819.3,1819.1,6.25689539]
[1746632202274,0.10038613,1819.3,1819.2,5.49692172]
[1746632202473,0.10038613,1819.3,1819.1,6.25689539]
[1746632202675,0.10038613,1819.3,1819.1,5.49699539]
[1746632203086,0.16378813,1819.2,1819.1,5.49699539]
[1746632203692,0.16378813,1819.2,1819.1,5.55196193]
[1746632203897,0.16378813,1819.2,1819.1,6.32216193]
[1746632204207,0.16378813,1819.2,1819.1,7.50411438]
[1746632204506,0.16378813,1819.2,1819.1,7.44914784]
[1746632204705,14.86760199,1819.8,1819.3,5.49657321]
[1746632205004,14.96806218,1819.8,1819.3,5.49657321]
[1746632205170,9.47286019,1819.8,1819.3,5.49644252]
[1746632205375,2.41564563,1819.8,1819.4,6.26503264]
[1746632205603,3.91886019,1819.8,1819.4,6.26503264]
[1746632205914,3.91886019,1819.8,1819.5,5.4959679]
[1746632206204,3.10046019,1819.8,1819.5,5.49586963]
[1746632206396,0.10046019,1819.8,1819.5,5.49576938]
[1746632206597,0.10046019,1819.8,1819.4,0.7689]
[1746632206598,3.10046019,1819.8,1819.4,6.26510608]
[1746632207180,3.10046019,1819.8,1819.4,6.2649999]
[1746632207410,3.10046019,1819.8,1819.4,1.39539999]
[1746632207605,3.10046019,1819.8,1819.3,5.49639971]
[1746632207810,0.8205,1819.7,1819.3,5.49639971]
[1746632208379,0.8205,1819.7,1819.2,6.26971824]
[1746632208575,6.41647608,1819.7,1819.2,6.26971824]
[1746632208780,11.91213137,1819.7,1819.2,6.26971824]
[1746632208991,1.19121314,1819.6,1819.2,0.773]
[1746632209408,6.68698162,1819.6,1819.1,5.49701962]
[1746632209607,3.0,1819.5,1819.1,5.49701962]
[1746632210115,8.49612299,1819.5,1819.0,6.27337315]
[1746632210276,4.51831046,1819.5,1819.1,5.49712875]
[1746632210913,10.01436797,1819.5,1819.0,6.27336726]
[1746632211118,4.51831046,1819.5,1819.1,5.49707989]
[1746632211324,3.92096019,1819.7,1819.3,5.49652898]
[1746632211497,3.0,1819.5,1819.3,5.49652898]
[1746632211701,0.10046019,1819.7,1819.4,6.24610225]
[1746632212022,0.41050621,1819.7,1819.2,6.24684669]
[1746632212336,0.10046019,1819.7,1819.5,5.49596589]
[1746632212689,0.10046019,1819.7,1819.5,5.49582453]